fUST/lending_fUST_20260113
["ID","MTS","AMOUNT","RATE_DAILY","PERIOD"]
[401496005,1768270238574,-151.0,0.000122,2]
[401496006,1768270238584,-151.0,0.000122,2]
[401496007,1768270238593,-151.0,0.000122,2]
[401496008,1768270238602,-151.0,0.000123,2]
[401496009,1768270238612,-543.68980212,0.00012321,2]
[401496010,1768270238622,-151.27013683,0.00012321,2]
[401496011,1768270238632,-462.2385433,0.00012321,2]
[401496012,1768270238642,-300.0,0.00012428,2]
[401496013,1768270238651,-300.0,0.00012428,2]
[401496014,1768270238661,-300.0,0.00012428,2]
[401496015,1768270238671,-300.0,0.00012428,2]
[401496016,1768270238681,-300.0,0.00012428,2]
[401496017,1768270238691,-300.0,0.00012428,2]
[401496018,1768270238700,-300.0,0.00012428,2]
[401496019,1768270238710,-300.0,0.00012428,2]
[401496020,1768270238721,-300.0,0.00012428,2]
[401496021,1768270238731,-300.0,0.00012428,2]
[401496022,1768270238740,-300.0,0.00012428,2]
[401496023,1768270238750,-300.0,0.00012428,2]
[401496024,1768270238759,-300.0,0.00012428,2]
[401496025,1768270238769,-300.0,0.00012428,2]
[401496026,1768270238779,-300.0,0.00012428,2]
[401496027,1768270238788,-600.0,0.00012428,2]
[401496028,1768270238797,-165.04081597,0.00012458,2]
[401496029,1768270238807,-152.47392914,0.00012458,2]
[401496030,1768270238816,-231.4642444,0.00012595,2]
[401496031,1768270238826,-151.0,0.000126,2]
[401496032,1768270238836,-151.0,0.000129,2]
[401496033,1768270238846,-500.0,0.00012999,2]
[401496034,1768270238856,-7145.02897959,0.00013,2]
[401496035,1768270238866,-794.98681807,0.00013054,2]
[401496036,1768270238876,-420.0,0.00013075,2]
[401496037,1768270238886,-151.0,0.000132,2]
[401496038,1768270238896,-151.0,0.000132,2]
[401496039,1768270238905,-500.0,0.00013273,2]
[401496040,1768270238915,-500.0,0.00013273,2]
[401496041,1768270238925,-500.0,0.00013273,2]
[401496042,1768270238934,-500.0,0.00013273,2]
[401496043,1768270238944,-500.0,0.00013273,2]
[401496044,1768270238954,-500.0,0.00013273,2]
[401496046,1768270238963,-500.0,0.00013273,2]
[401496048,1768270238973,-500.0,0.00013273,2]
[401496050,1768270238982,-500.0,0.00013273,2]
[401496052,1768270238991,-500.0,0.00013273,2]
[401496053,1768270239000,-500.35980856,0.00013273,2]
[401496055,1768270239010,-500.0,0.00013273,2]
[401496057,1768270239019,-500.0,0.00013273,2]
[401496058,1768270239028,-500.0,0.00013273,2]
[401496060,1768270239038,-500.0,0.00013273,2]
[401496062,1768270239047,-500.0,0.00013273,2]
[401496064,1768270239056,-500.0,0.00013273,2]
[401496065,1768270239065,-500.0,0.00013273,2]
[401496068,1768270239075,-500.0,0.00013273,2]
[401496069,1768270239085,-588.05171808,0.00013273,2]
[401496071,1768270239095,-500.47876979,0.00013273,2]
[401496073,1768270239104,-500.0,0.00013273,2]
[401496075,1768270239113,-500.0,0.00013273,2]
[401496077,1768270239123,-500.0,0.00013273,2]
[401496078,1768270239136,-500.0,0.00013273,2]
[401496079,1768270239145,-500.0,0.00013273,2]
[401496080,1768270239155,-500.0,0.00013273,2]
[401496081,1768270239164,-500.0,0.00013273,2]
[401496082,1768270239173,-500.26663269,0.00013273,2]
[401496083,1768270239183,-500.0,0.00013273,2]
[401496084,1768270239192,-500.0,0.00013273,2]
[401496085,1768270239202,-500.0,0.00013273,2]
[401496086,1768270239211,-500.0,0.00013273,2]
[401496087,1768270239224,-500.0,0.00013273,2]
[401496089,1768270239234,-500.97359104,0.00013273,2]
[401496090,1768270239243,-500.0,0.00013273,2]
[401496092,1768270239254,-500.0,0.00013273,2]
[401496094,1768270239263,-500.33229087,0.00013273,2]
[401496095,1768270239273,-500.0,0.00013273,2]
[401496096,1768270239283,-500.0,0.00013273,2]
[401496097,1768270239292,-401.02939907,0.00013273,2]
[401496098,1768270239301,-500.0,0.00013273,2]
[401496099,1768270239310,-500.0,0.00013273,2]
[401496100,1768270239320,-500.0,0.00013273,2]
[401496101,1768270239330,-500.0,0.00013273,2]
[401496102,1768270239339,-500.0,0.00013273,2]
[401496103,1768270239350,-500.0,0.00013273,2]
[401496104,1768270239364,-151.0,0.000134,2]
[401496105,1768270239377,-155.79052665,0.0001341,2]
[401496106,1768270239390,-720.0,0.0001367,2]
[401496107,1768270239403,-300.0,0.00013673,2]
[401496108,1768270239413,-500.0,0.00013698,2]
[401496109,1768270239425,-500.0,0.00013698,2]
[401496110,1768270239439,-500.0,0.00013698,2]
[401496111,1768270239450,-500.0,0.00013698,2]
[401496112,1768270239462,-500.0,0.00013698,2]
[401496113,1768270239475,-500.0,0.00013698,2]
[401496114,1768270239488,-500.0,0.00013698,2]
[401496115,1768270239499,-500.0,0.00013698,2]
[401496116,1768270239511,-500.0,0.00013698,2]
[401496117,1768270239524,-500.0,0.00013698,2]
[401496118,1768270239537,-500.0,0.00013698,2]
[401496119,1768270239549,-500.0,0.00013698,2]
[401496120,1768270239561,-500.0,0.00013698,2]
[401496121,1768270239572,-500.0,0.00013698,2]
[401496122,1768270239583,-500.0,0.00013698,2]
[401496123,1768270239594,-505.24717796,0.00013698,2]
[401496124,1768270239606,-13612.0053348,0.00013699,2]
[401496125,1768270239618,-2787.501006,0.00013699,2]
[401496126,1768270239631,-500.0,0.00013699,2]
[401496127,1768270239643,-500.0,0.00013699,2]
[401496128,1768270239655,-434.45562234,0.00013699,2]
[401496129,1768270239666,-500.0,0.00013699,2]
[401496130,1768270239677,-500.0,0.00013699,2]
[401496131,1768270239688,-500.0,0.00013699,2]
[401496132,1768270239699,-500.0,0.00013699,2]
[401496133,1768270239710,-500.0,0.00013699,2]
[401496134,1768270239722,-500.33229586,0.00013699,2]
[401496135,1768270239734,-500.0,0.00013699,2]
[401496137,1768270239745,-461.30308829,0.00013699,2]
[401496138,1768270239758,-500.0,0.00013699,2]
[401496139,1768270239770,-500.0,0.00013699,2]
[401496140,1768270239783,-500.26011474,0.00013699,2]
[401496141,1768270239795,-500.0,0.00013699,2]
[401496142,1768270239807,-500.0,0.00013699,2]
[401496143,1768270239820,-500.0,0.00013699,2]
[401496144,1768270239835,-298.89998035,0.00013699,2]
[401496145,1768270239848,-500.0,0.00013699,2]
[401496146,1768270239860,-612.31425268,0.00013699,2]
[401496147,1768270239870,-500.0,0.00013699,2]
[401496148,1768270239881,-500.27924126,0.00013699,2]
[401496149,1768270239893,-500.0,0.00013699,2]
[401496150,1768270239907,-411.20049965,0.00013699,2]
[401496151,1768270239919,-610.91637181,0.00013699,2]
[401496152,1768270239932,-500.32741259,0.00013699,2]
[401496153,1768270239943,-500.0,0.00013699,2]
[401496154,1768270239955,-500.0,0.00013699,2]
[401496155,1768270239966,-500.0,0.00013699,2]
[401496156,1768270239977,-500.0,0.00013699,2]
[401496157,1768270239989,-500.0,0.00013699,2]
[401496158,1768270240001,-500.0,0.00013699,2]
[401496159,1768270240011,-500.0,0.00013699,2]
[401496160,1768270240021,-253.00078236,0.00013699,2]
[401496161,1768270240033,-500.0,0.00013699,2]
[401496162,1768270240043,-500.0,0.00013699,2]
[401496163,1768270240054,-500.74793722,0.00013699,2]
[401496164,1768270240065,-500.0,0.00013699,2]
[401496165,1768270240076,-500.0,0.00013699,2]
[401496166,1768270240086,-160.71798276,0.00013699,2]
[401496167,1768270240097,-500.0,0.00013699,2]
[401496168,1768270240108,-500.0,0.00013699,2]
[401496169,1768270240118,-500.0,0.00013699,2]
[401496170,1768270240130,-500.0,0.00013699,2]
[401496171,1768270240141,-500.0,0.00013699,2]
[401496172,1768270240151,-500.0,0.00013699,2]
[401496173,1768270240162,-500.0,0.00013699,2]
[401496174,1768270240173,-500.0,0.00013699,2]
[401496175,1768270240184,-500.0,0.00013699,2]
[401496176,1768270240195,-500.0,0.00013699,2]
[401496177,1768270240205,-500.0,0.00013699,2]
[401496178,1768270240216,-500.0,0.00013699,2]
[401496180,1768270240226,-500.0,0.00013699,2]
[401496181,1768270240237,-500.0,0.00013699,2]
[401496182,1768270240247,-500.0,0.00013699,2]
[401496183,1768270240258,-500.0,0.00013699,2]
[401496184,1768270240268,-502.80003889,0.00013699,2]
[401496186,1768270240279,-227.1525335,0.00013699,2]
[401496188,1768270240290,-500.0,0.00013699,2]
[401496191,1768270240301,-500.0,0.00013699,2]
[401496192,1768270240311,-500.0,0.00013699,2]
[401496193,1768270240322,-500.0,0.00013699,2]
[401496194,1768270240333,-500.0,0.00013699,2]
[401496195,1768270240343,-159.67447117,0.00013699,2]
[401496196,1768270240355,-296.2401009,0.00013699,2]
[401496197,1768270240365,-500.53205466,0.00013699,2]
[401496198,1768270240376,-500.0,0.00013699,2]
[401496200,1768270240388,-500.0,0.00013699,2]
[401496201,1768270240399,-500.0,0.00013699,2]
[401496202,1768270240410,-500.0,0.00013699,2]
[401496203,1768270240421,-500.0,0.00013699,2]
[401496204,1768270240432,-500.0,0.00013699,2]
[401496205,1768270240446,-500.0,0.00013699,2]
[401496206,1768270240456,-500.0,0.00013699,2]
[401496207,1768270240468,-501.77596466,0.00013699,2]
[401496208,1768270240478,-500.0,0.00013699,2]
[401496209,1768270240490,-367.67596865,0.00013699,2]
[401496210,1768270240501,-500.0,0.00013699,2]
[401496211,1768270240512,-500.0,0.00013699,2]
[401496212,1768270240522,-442.19105582,0.00013699,2]
[401496213,1768270240533,-313.26668117,0.00013699,2]
[401496214,1768270240543,-201.72675896,0.00013699,2]
[401496215,1768270240554,-1000.65920252,0.00013821,2]
[401496216,1768270240565,-303.88205907,0.00013821,2]
[401496217,1768270240576,-1000.0,0.00013821,2]
[401496218,1768270240587,-799.1982595,0.00013821,2]
[401496219,1768270240597,-1000.0,0.00013821,2]
[401496220,1768270240608,-1000.0,0.00013821,2]
[401496221,1768270240619,-1000.0,0.00013821,2]
[401496222,1768270240630,-1000.0,0.00013821,2]
[401496223,1768270240771,-1000.0,0.00013821,2]
[401496224,1768270240784,-1000.0,0.00013821,2]
[401496225,1768270240794,-1114.62780634,0.00013821,2]
[401496226,1768270240803,-1000.0,0.00013821,2]
[401496227,1768270240812,-1000.0,0.00013821,2]
[401496228,1768270240821,-1000.0,0.00013821,2]
[401496229,1768270240831,-1000.0,0.00013821,2]
[401496230,1768270240840,-958.892719,0.00013821,2]
[401496231,1768270240850,-1000.0,0.00013821,2]
[401496232,1768270240861,-290.80732737,0.00013821,2]
[401496233,1768270240871,-1000.0,0.00013821,2]
[401496234,1768270240880,-1000.0,0.00013821,2]
[401496235,1768270240890,-1000.0,0.00013821,2]
[401496236,1768270240899,-1000.0,0.00013821,2]
[401496237,1768270240908,-1000.0,0.00013821,2]
[401496238,1768270240918,-1000.0,0.00013821,2]
[401496239,1768270240927,-1000.0,0.00013821,2]
[401496240,1768270240936,-1000.0,0.00013821,2]
[401496241,1768270240946,-1000.0,0.00013821,2]
[401496242,1768270240955,-1000.0,0.00013821,2]
[401496243,1768270240964,-1000.0,0.00013821,2]
[401496244,1768270240973,-332.84054577,0.00013821,2]
[401496245,1768270240983,-1000.0,0.00013821,2]
[401496246,1768270240992,-1000.0,0.00013821,2]
[401496247,1768270241001,-1000.0,0.00013821,2]
[401496248,1768270241010,-681.0016986,0.00013821,2]
[401496249,1768270241019,-1000.0,0.00013821,2]
[401496250,1768270241028,-1000.0,0.00013821,2]
[401496251,1768270241037,-1000.0,0.00013821,2]
[401496252,1768270241046,-1001.09633075,0.00013821,2]
[401496253,1768270241055,-1000.0,0.00013821,2]
[401496254,1768270241064,-1000.0,0.00013821,2]
[401496255,1768270241073,-350.65754755,0.00013849,2]
[401496256,1768270241083,-294.27582937,0.00013973,2]
[401496257,1768270241092,-500.0,0.00014,2]
[401496258,1768270241101,-600.0,0.00014221,2]
[401496259,1768270241111,-1000.0,0.00014247,2]
[401496260,1768270241120,-1000.49621073,0.00014247,2]
[401496261,1768270241130,-876.1803398,0.00014247,2]
[401496262,1768270241141,-500.83741654,0.00014247,2]
[401496263,1768270241150,-1000.90817033,0.00014247,2]
[401496264,1768270241159,-1000.92415613,0.00014247,2]
[401496265,1768270241168,-1000.0,0.00014247,2]
[401496266,1768270241176,-1001.25659261,0.00014247,2]
[401496267,1768270241186,-276.84131836,0.00014247,2]
[401496268,1768270241195,-1000.0,0.00014247,2]
[401496269,1768270241204,-1000.0,0.00014247,2]
[401496270,1768270241213,-1000.0,0.00014247,2]
[401496271,1768270241223,-1000.27165154,0.00014247,2]
[401496272,1768270241232,-1018.46469469,0.00014247,2]
[401496273,1768270241243,-1002.91382206,0.00014247,2]
[401496274,1768270241252,-501.93084726,0.00014247,2]
[401496275,1768270241262,-1000.0,0.00014247,2]
[401496276,1768270241271,-1081.71283585,0.00014247,2]
[401496277,1768270241280,-1000.0,0.00014247,2]
[401496278,1768270241290,-1000.0,0.00014247,2]
[401496279,1768270241300,-1000.0,0.00014247,2]
[401496280,1768270241309,-853.4021361,0.00014247,2]
[401496281,1768270241318,-1000.0,0.00014247,2]
[401496282,1768270241328,-1000.46611267,0.00014247,2]
[401496283,1768270241337,-1000.0,0.00014247,2]
[401496284,1768270241346,-1000.0,0.00014247,2]
[401496285,1768270241357,-1000.0,0.00014247,2]
[401496286,1768270241366,-1000.92768077,0.00014247,2]
[401496287,1768270241375,-1000.0,0.00014247,2]
[401496288,1768270241384,-1000.0,0.00014247,2]
[401496289,1768270241393,-1000.0,0.00014247,2]
[401496290,1768270241402,-1000.0,0.00014247,2]
[401496291,1768270241412,-250.18055217,0.00014247,2]
[401496292,1768270241421,-1000.0,0.00014247,2]
[401496293,1768270241431,-1000.0,0.00014247,2]
[401496294,1768270241443,-1014.96531126,0.00014247,2]
[401496295,1768270241452,-1000.0,0.00014247,2]
[401496296,1768270241461,-1003.11856965,0.00014247,2]
[401496297,1768270241470,-1000.0,0.00014247,2]
[401496298,1768270241479,-1000.0,0.00014247,2]
[401496299,1768270241488,-1000.0,0.00014247,2]
[401496300,1768270241498,-1000.0,0.00014247,2]
[401496301,1768270241508,-1000.0,0.00014247,2]
[401496302,1768270241518,-1000.0,0.00014247,2]
[401496303,1768270241528,-647.12625165,0.00014247,2]
[401496304,1768270241538,-1000.0,0.00014247,2]
[401496305,1768270241547,-1138.93332582,0.00014247,2]
[401496306,1768270241556,-346.38117913,0.00014247,2]
[401496307,1768270241566,-1000.0,0.00014247,2]
[401496308,1768270241575,-1000.0,0.00014247,2]
[401496309,1768270241584,-1000.0,0.00014247,2]
[401496310,1768270241593,-1000.0,0.00014247,2]
[401496311,1768270241603,-1000.0,0.00014247,2]
[401496312,1768270241613,-1000.0,0.00014247,2]
[401496313,1768270241622,-1000.0,0.00014247,2]
[401496314,1768270241631,-1006.57632602,0.00014247,2]
[401496315,1768270241644,-1000.0,0.00014247,2]
[401496316,1768270241653,-1000.0,0.00014247,2]
[401496317,1768270241662,-1000.0,0.00014247,2]
[401496318,1768270241672,-1000.0,0.00014247,2]
[401496319,1768270241682,-587.0,0.00014354,2]
[401496320,1768270241691,-501.53674303,0.00014368,2]
[401496321,1768270241701,-504.59320272,0.00014368,2]
[401496322,1768270241710,-1121.35319303,0.00014368,2]
[401496323,1768270241719,-764.84363887,0.00014368,2]
[401496324,1768270241729,-1001.10373896,0.00014368,2]
[401496325,1768270241739,-1500.0,0.00014368,2]
[401496326,1768270241748,-1500.0,0.00014368,2]
[401496327,1768270241758,-1500.0,0.00014368,2]
[401496328,1768270241767,-1500.0,0.00014368,2]
[401496329,1768270241776,-1500.0,0.00014368,2]
[401496330,1768270241785,-1500.0,0.00014368,2]
[401496331,1768270241795,-424.06874761,0.00014368,2]
[401496332,1768270241804,-1500.0,0.00014368,2]
[401496333,1768270241814,-1500.0,0.00014368,2]
[401496334,1768270241823,-1604.29070362,0.00014368,2]
[401496335,1768270241833,-1500.0,0.00014368,2]
[401496336,1768270241843,-1500.0,0.00014368,2]
[401496337,1768270241852,-1501.96202407,0.00014368,2]
[401496338,1768270241862,-1500.0,0.00014368,2]
[401496339,1768270241872,-402.67173602,0.00014368,2]
[401496340,1768270241881,-1177.20505665,0.00014368,2]
[401496341,1768270241890,-1486.32296382,0.00014368,2]
[401496342,1768270241900,-1500.0,0.00014368,2]
[401496343,1768270241909,-501.24947026,0.00014368,2]
[401496344,1768270241920,-1500.0,0.00014368,2]
[401496345,1768270241930,-1500.0,0.00014368,2]
[401496346,1768270241940,-1500.0,0.00014368,2]
[401496347,1768270241949,-1500.0,0.00014368,2]
[401496348,1768270241959,-1503.82096897,0.00014368,2]
[401496349,1768270241968,-1001.124693,0.00014368,2]
[401496350,1768270241978,-1500.0,0.00014368,2]
[401496351,1768270241988,-5000.0,0.0001451,2]
[401496352,1768270241998,-1033.87912665,0.0001452,2]
[401496353,1768270242008,-100000.0,0.0001459,2]
[401496354,1768270242018,-3237.3839936,0.00014671,2]
[401496355,1768270242028,-500.0,0.00014712,2]
[401496356,1768270242038,-500.0,0.00014712,2]
[401496357,1768270242048,-500.0,0.00014712,2]
[401496358,1768270242059,-500.0,0.00014712,2]
[401496359,1768270242068,-500.0,0.00014712,2]
[401496360,1768270242078,-500.0,0.00014712,2]
[401496361,1768270242087,-500.0,0.00014712,2]
[401496362,1768270242096,-500.0,0.00014712,2]
[401496363,1768270242105,-500.0,0.00014712,2]
[401496364,1768270242114,-500.0,0.00014712,2]
[401496365,1768270242124,-500.0,0.00014712,2]
[401496366,1768270242133,-500.0,0.00014712,2]
[401496367,1768270242143,-367.92191618,0.00014712,2]
[401496368,1768270242153,-15236.9571301,0.0001474,2]
[401496369,1768270242163,-900.0,0.00014768,2]
[401496370,1768270242173,-181.44158321,0.00014795,2]
[401496371,1768270242183,-1000.76370703,0.00014795,2]
[401496372,1768270242193,-1122.15758895,0.00014795,2]
[401496373,1768270242202,-1500.0,0.00014795,2]
[401496374,1768270242212,-675.8504307,0.00014795,2]
[401496375,1768270242222,-1500.0,0.00014795,2]
[401496376,1768270242231,-1500.0,0.00014795,2]
[401496377,1768270242241,-1001.171917,0.00014795,2]
[401496378,1768270242250,-1500.0,0.00014795,2]
[401496379,1768270242260,-500.76361488,0.00014795,2]
[401496380,1768270242269,-159.06616875,0.00014795,2]
[401496381,1768270242279,-575.12204215,0.00014795,2]
[401496382,1768270242287,-501.12760759,0.00014795,2]
[401496383,1768270242296,-500.72224466,0.00014795,2]
[401496384,1768270242306,-1501.38493876,0.00014795,2]
[401496385,1768270242315,-1500.0,0.00014795,2]
[401496386,1768270242324,-1000.0,0.00014795,2]
[401496387,1768270242333,-1501.00555591,0.00014795,2]
[401496388,1768270242342,-1500.0,0.00014795,2]
[401496389,1768270242352,-1500.0,0.00014795,2]
[401496390,1768270242361,-1501.40641457,0.00014795,2]
[401496391,1768270242371,-1500.89243734,0.00014795,2]
[401496392,1768270242380,-1507.04649373,0.00014795,2]
[401496393,1768270242389,-1500.0,0.00014795,2]
[401496394,1768270242399,-711.54421666,0.00014795,2]
[401496395,1768270242408,-1501.05825586,0.00014795,2]
[401496396,1768270242418,-530.28509529,0.00014795,2]
[401496397,1768270242427,-1501.07329745,0.00014795,2]
[401496398,1768270242438,-500.93199732,0.00014795,2]
[401496399,1768270242447,-1500.0,0.00014795,2]
[401496400,1768270242456,-1501.63615745,0.00014795,2]
[401496401,1768270242466,-1500.98173226,0.00014795,2]
[401496402,1768270242476,-1501.37309074,0.00014795,2]
[401496403,1768270242486,-1510.88603555,0.00014795,2]
[401496404,1768270242495,-1500.0,0.00014795,2]
[401496405,1768270242504,-965.26033505,0.00014795,2]
[401496406,1768270242515,-1501.33228537,0.00014795,2]
[401496407,1768270242524,-1500.0,0.00014795,2]
[401496408,1768270242534,-760.5925847,0.00014831,2]
[401496409,1768270242543,-151.56553663,0.000149,2]
[401496410,1768270242552,-151.56553662,0.000149,2]
[401496411,1768270242562,-2000.0,0.00014916,2]
[401496412,1768270242572,-2000.0,0.00014916,2]
[401496413,1768270242581,-155.72124395,0.00014916,2]
[401496414,1768270242591,-2000.0,0.00014916,2]
[401496415,1768270242601,-501.00821416,0.00014916,2]
[401496416,1768270242611,-501.3821036,0.00014916,2]
[401496417,1768270242620,-500.0,0.00014916,2]
[401496418,1768270242630,-1468.56684157,0.00014916,2]
[401496419,1768270242640,-2000.0,0.00014916,2]
[401496420,1768270242650,-2000.0,0.00014916,2]
[401496421,1768270242660,-2000.0,0.00014916,2]
[401496422,1768270242669,-2000.0,0.00014916,2]
[401496423,1768270242679,-2000.0,0.00014916,2]
[401496424,1768270242688,-2000.0,0.00014916,2]
[401496425,1768270242698,-2000.0,0.00014916,2]
[401496426,1768270242707,-1115.07532372,0.00014916,2]
[401496427,1768270242717,-2000.0,0.00014916,2]
[401496428,1768270242727,-163.0,0.00015,2]
[401496429,1768270242736,-864.0,0.00015037,2]
[401496430,1768270242746,-722.3580089,0.00015255,2]
[401496431,1768270242755,-303.3619795,0.00015316,2]
[401496432,1768270242766,-3399.8246846,0.0001534,2]
[401496433,1768270242775,-1001.48921188,0.00015342,2]
[401496434,1768270242785,-1502.09397869,0.00015342,2]
[401496436,1768270242794,-1032.33423747,0.00015342,2]
[401496437,1768270242804,-1527.24664975,0.00015342,2]
[401496438,1768270242814,-502.76680069,0.00015342,2]
[401496439,1768270242823,-1503.11478262,0.00015342,2]
[401496440,1768270242833,-738.12965547,0.00015342,2]
[401496442,1768270242843,-508.65480008,0.00015342,2]
[401496443,1768270242853,-506.46904603,0.00015342,2]
[401496444,1768270242862,-2000.0,0.00015342,2]
[401496445,1768270242872,-2000.0,0.00015342,2]
[401496446,1768270242882,-169.7111452,0.00015451,2]
[401496447,1768270242891,-1003.70557583,0.00015464,2]
[401496448,1768270242900,-1005.08827412,0.00015464,2]
[401496449,1768270242911,-376.21269073,0.00015464,2]
[401496450,1768270242921,-1003.32351431,0.00015464,2]
[401496451,1768270242931,-2025.97466783,0.00015464,2]
[401496452,1768270242940,-2500.0,0.00015464,2]
[401496453,1768270242949,-2500.0,0.00015464,2]
[401496454,1768270242959,-2500.0,0.00015464,2]
[401496455,1768270242969,-2500.0,0.00015464,2]
[401496456,1768270242978,-1003.04077884,0.00015464,2]
[401496457,1768270242988,-2500.0,0.00015464,2]
[401496458,1768270242997,-250.0,0.00015592,2]
[401496459,1768270243006,-823.0,0.00015759,2]
[401496460,1768270243015,-404.14768192,0.00015849,2]
[401496461,1768270243025,-2500.0,0.0001589,2]
[401496462,1768270243034,-1002.43140219,0.0001589,2]
[401496463,1768270243044,-2004.76280293,0.00016012,2]
[401496464,1768270243053,-3000.0,0.00016012,2]
[401496465,1768270243063,-506.2119685,0.00016012,2]
[401496466,1768270243072,-3000.0,0.00016012,2]
[401496467,1768270243082,-3000.0,0.00016012,2]
[401496468,1768270243092,-229.07764705,0.00016356,7]
[401496469,1768270243102,-500.0,0.00016438,2]
[401496470,1768270243112,-500.0,0.00016438,2]
[401496471,1768270243121,-442.87297618,0.00016438,2]
[401496472,1768270243131,-3000.0,0.00016438,2]
[401496473,1768270243140,-1041.66666667,0.00016518,2]
[401496474,1768270243150,-1000.0,0.00016541,2]
[401496475,1768270243160,-2511.02649148,0.0001656,2]
[401496476,1768270243169,-1041.72224603,0.0001656,2]
[401496477,1768270243179,-509.17780676,0.0001656,2]
[401496478,1768270243188,-1025.21475413,0.00016986,2]
[401496479,1768270243198,-2812.60494797,0.00017078,2]
[401496480,1768270243207,-1152.0,0.00017302,2]
[401496481,1768270243217,-5042.42626027,0.00017412,2]
[401496482,1768270243227,-180.64778451,0.00017443,2]
[401496483,1768270243237,-2812.60494797,0.00017521,2]
[401496484,1768270243247,-2812.60494797,0.00017691,2]
[401496485,1768270243256,-2812.60494797,0.00017841,2]
[401496486,1768270243266,-457.63781629,0.00017849,2]
[401496487,1768270243275,-496.47127164,0.00017952,2]
[401496488,1768270243284,-181.08010149,0.00017952,2]
[401496489,1768270243294,-187.78006525,0.00017952,2]
[401496490,1768270243303,-194.72792766,0.00017952,2]
[401496491,1768270243312,-201.93286099,0.00017952,2]
[401496492,1768270243322,-209.40437684,0.00017952,2]
[401496493,1768270243331,-217.15233878,0.00017952,2]
[401496494,1768270243341,-225.18697532,0.00017952,2]
[401496495,1768270243350,-216.47688675,0.00017952,2]
[401496496,1768270243360,-233.51889341,0.00017952,2]
[401496497,1768270243467,-242.15909246,0.00017952,2]
[401496499,1768270243478,-251.11897888,0.00017952,2]
[401496501,1768270243489,-260.4103811,0.00017952,2]
[401496503,1768270243499,-270.0455652,0.00017952,2]
[401496504,1768270243508,-2398.4119403,0.00017952,2]
[401496505,1768270243520,-280.03725112,0.00017952,2]
[401496507,1768270243530,-290.39862941,0.00017952,2]
[401496508,1768270243539,-301.1433787,0.00017952,2]
[401496509,1768270243549,-151.0,0.00017955,2]
[401496510,1768270243558,-172.558,0.00018025,2]
[401496511,1768270243568,-1000.0,0.00018195,2]
[401496512,1768270243577,-244.0,0.00018195,2]
[401496514,1768270243586,-2812.60494797,0.00018197,2]
[401496516,1768270243596,-2812.60494797,0.00018405,2]
[401496518,1768270243605,-151.0,0.00018461,2]
[401496520,1768270243615,-514.84070869,0.000185,2]
[401496522,1768270243624,-2487.15318209,0.000185,2]
[401496524,1768270243634,-2812.60494797,0.00018759,2]
[401496526,1768270243643,-151.0,0.00018966,2]
[401496527,1768270243652,-1613.0,0.00018995,2]
[401496529,1768270243662,-533.88981491,0.00019048,2]
[401496531,1768270243671,-2579.17784983,0.00019048,2]
[401496533,1768270243680,-2812.60494797,0.00019053,2]
[401496535,1768270243689,-360.2,0.00019178,2]
[401496537,1768270243698,-160.67,0.000192,2]
[401496538,1768270243707,-17705.96,0.000192,2]
[401496539,1768270243717,-156.68,0.000192,2]
[401496540,1768270243726,-2812.60494798,0.00019296,2]
[401496541,1768270243736,-4111.24,0.000193,2]
[401496542,1768270243745,-728.0,0.0001931,2]
[401496543,1768270243754,-179702.401634,0.00019372,2]
[401496544,1768270243763,-3056.4561092,0.00019444,2]
[401496545,1768270243773,-473471.608926,0.00019465,2]
[401496547,1768270244729,-500.0,0.0001195,2]
[401496548,1768270244739,-76.35107221,0.0001195,2]